fUST/lending_fUST_20250516
["ID","MTS","AMOUNT","RATE_DAILY","PERIOD"]
[361180668,1747326661057,-450.0,0.00017671,2]
[361180669,1747326661066,-2030.47,0.00017671,2]
[361180670,1747326661075,-558.77,0.00017671,2]
[361180671,1747326661085,-450.0,0.00017671,2]
[361180672,1747326661095,-546.0,0.00017673,2]
[361180673,1747326661105,-2245.0,0.00017673,2]
[361180674,1747326661114,-707.0,0.00017673,2]
[361180675,1747326661124,-450.0,0.00017704,2]
[361180676,1747326661133,-450.0,0.00017704,2]
[361180677,1747326661143,-606.51,0.00017704,2]
[361180678,1747326661153,-641.93,0.00017704,2]
[361180679,1747326661163,-450.0,0.00017704,2]
[361180680,1747326661172,-451.1,0.00017704,2]
[361180681,1747326661182,-450.0,0.00017704,2]
[361180682,1747326661191,-198.78,0.00017704,2]
[361180683,1747326661200,-450.0,0.00017704,2]
[361180684,1747326661210,-450.0,0.00017704,2]
[361180685,1747326661220,-546.26,0.00017704,2]
[361180686,1747326661231,-490.8,0.00017704,2]
[361180687,1747326661241,-983.75,0.000178,2]
[361180688,1747326661251,-450.0,0.000178,2]
[361180689,1747326661260,-450.0,0.000178,2]
[361180690,1747326661270,-166.06,0.000178,2]
[361180691,1747326661279,-559.28,0.000178,2]
[361180692,1747326661289,-151.0,0.00017808,2]
[361180693,1747326661299,-151.0,0.00017808,2]
[361180694,1747326661308,-151.0,0.00017808,2]
[361180695,1747326661317,-151.0,0.00017808,2]
[361180696,1747326661326,-151.0,0.00017808,2]
[361180697,1747326661336,-152.11673,0.00017808,2]
[361180698,1747326661345,-152.116729,0.00017808,2]
[361180699,1747326661355,-450.0,0.00017808,2]
[361180700,1747326661364,-450.0,0.00017808,2]
[361180701,1747326661375,-450.0,0.00017808,2]
[361180702,1747326661385,-1158.53,0.00017808,2]
[361180703,1747326661395,-2023.39,0.00017808,2]
[361180704,1747326661405,-450.0,0.00017808,2]
[361180705,1747326661414,-450.0,0.00017808,2]
[361180706,1747326661424,-450.0,0.00017808,2]
[361180707,1747326661434,-2030.47,0.00017808,2]
[361180708,1747326661443,-558.77,0.00017808,2]
[361180709,1747326661452,-500.0,0.00017808,2]
[361180710,1747326661461,-500.0,0.00017808,2]
[361180711,1747326661471,-500.0,0.00017808,2]
[361180712,1747326661480,-500.0,0.00017808,2]
[361180713,1747326661490,-500.0,0.00017808,2]
[361180714,1747326661499,-500.0,0.00017808,2]
[361180715,1747326661509,-500.0,0.00017808,2]
[361180716,1747326661531,-500.0,0.00017808,2]
[361180717,1747326661548,-500.0,0.00017808,2]
[361180718,1747326661567,-500.0,0.00017808,2]
[361180719,1747326661588,-500.0,0.00017808,2]
[361180720,1747326661607,-500.0,0.00017808,2]
[361180721,1747326661625,-500.0,0.00017808,2]
[361180722,1747326661648,-500.0,0.00017808,2]
[361180723,1747326661663,-450.0,0.00017808,2]
[361180724,1747326661681,-450.0,0.00017841,2]
[361180725,1747326661700,-450.0,0.00017841,2]
[361180726,1747326661722,-606.51,0.00017841,2]
[361180727,1747326661736,-641.93,0.00017841,2]
[361180728,1747326661754,-450.0,0.00017841,2]
[361180729,1747326661769,-451.1,0.00017841,2]
[361180730,1747326661785,-450.0,0.00017841,2]
[361180731,1747326661800,-450.0,0.00017841,2]
[361180732,1747326661814,-450.0,0.00017841,2]
[361180733,1747326661829,-546.26,0.00017841,2]
[361180734,1747326661845,-490.8,0.00017841,2]
[361180735,1747326661859,-151.0,0.00017871,2]
[361180736,1747326661875,-151.0,0.00017871,2]
[361180737,1747326661892,-3829.70107926,0.00017871,2]
[361180738,1747326661908,-547.0177848,0.00017881,2]
[361180739,1747326661923,-500.0,0.0001789,2]
[361180740,1747326661938,-151.0,0.000179,2]
[361180741,1747326661953,-1379.66203791,0.000179,2]
[361180742,1747326661967,-1379.66203773,0.000179,2]
[361180743,1747326661982,-1379.66203773,0.000179,2]
[361180744,1747326661998,-1379.66203773,0.000179,2]
[361180745,1747326662013,-1379.66203773,0.000179,2]
[361180746,1747326662028,-1379.66203773,0.000179,2]
[361180747,1747326662038,-1379.66203773,0.000179,2]
[361180748,1747326662047,-1379.66203773,0.000179,2]
[361180749,1747326662057,-1379.66203773,0.000179,2]
[361180750,1747326662067,-1379.66203773,0.000179,2]
[361180751,1747326662078,-1379.66203773,0.000179,2]
[361180752,1747326662087,-1379.66203773,0.000179,2]
[361180753,1747326662097,-1379.66203773,0.000179,2]
[361180754,1747326662107,-1379.66203773,0.000179,2]
[361180755,1747326662117,-1379.66203773,0.000179,2]
[361180756,1747326662131,-1379.66203773,0.00017934,2]
[361180757,1747326662141,-983.75,0.00017937,2]
[361180758,1747326662151,-450.0,0.00017937,2]
[361180759,1747326662160,-450.0,0.00017937,2]
[361180760,1747326662169,-151.0,0.00017944,2]
[361180761,1747326662179,-151.0,0.00017944,2]
[361180762,1747326662189,-450.0,0.00017945,2]
[361180763,1747326662199,-340.25,0.00017945,2]
[361180764,1747326662209,-450.0,0.00017945,2]
[361180765,1747326662219,-1158.53,0.00017945,2]
[361180766,1747326662229,-2023.39,0.00017945,2]
[361180767,1747326662239,-450.0,0.00017945,2]
[361180768,1747326662249,-450.0,0.00017945,2]
[361180769,1747326662259,-450.0,0.00017945,2]
[361180770,1747326662269,-2030.47,0.00017945,2]
[361180771,1747326662279,-558.77,0.00017945,2]
[361180772,1747326662498,-450.0,0.00017945,2]
[361180773,1747326662518,-420.0,0.00017962,2]
[361180774,1747326662530,-151.0,0.0001797,2]
[361180775,1747326662540,-151.0,0.0001797,2]
[361180776,1747326662549,-887.38584,0.0001797,2]
[361180777,1747326662559,-151.0,0.0001797,2]
[361180778,1747326662568,-165.902412,0.0001797,2]
[361180779,1747326662578,-972.21687,0.0001797,2]
[361180780,1747326662587,-151.0,0.0001797,2]
[361180781,1747326662596,-167.064468,0.0001797,2]
[361180782,1747326662605,-972.21687,0.0001797,2]
[361180783,1747326662615,-167.064468,0.0001797,2]
[361180784,1747326662626,-151.0,0.0001797,2]
[361180785,1747326662637,-119706.91598597,0.00017971,5]
[361180786,1747326662654,-2500.8274349,0.00017971,5]
[361180787,1747326662665,-2880.60306078,0.00017971,5]
[361180788,1747326662677,-3898.4950549,0.00017971,5]
[361180789,1747326662751,-476.98,0.00016471,2]
[361180790,1747326662761,-450.0,0.00016567,2]
[361180791,1747326662770,-386.44,0.00016704,2]
[361180792,1747326662779,-9000.58,0.00017971,5]
[361180793,1747326662806,-400.0,0.00016567,2]
[361180794,1747326662815,-730509.14771474,0.00017971,5]
[361180795,1747326662827,-5060.00000156,0.00017971,5]
[361180796,1747326662869,-400.0,0.00016438,2]
[361180797,1747326662879,-450.0,0.00016567,2]
[361180798,1747326662888,-162.93,0.00016704,2]
[361180799,1747326662897,-625.45773072,0.00017971,5]
[361180800,1747326663186,-0.00341191,0.00017971,5]
[361180801,1747326663227,-41.79781611,0.00017971,5]
[361180802,1747326663267,169.14546206,0.00015571,2]
[361180805,1747326857638,-5000.0,0.00013562,2]
[361180939,1747326925663,-4987.0,0.00013562,2]
[361180944,1747327124649,-5000.0,0.00013562,2]
[361180945,1747327191465,-5000.0,0.00013562,2]
[361180946,1747327256719,-4960.0,0.00013562,2]
[361180952,1747327452948,-5000.0,0.00013426,2]
[361180980,1747327548133,-629.02582558,0.00013562,2]
[361180995,1747327583939,-4370.97417442,0.00013562,2]
[361180996,1747327583963,-191.371093,0.00013699,2]
[361180997,1747327583988,-156.703246,0.000141,5]
[361180998,1747327584016,-189.231,0.000147,2]
[361180999,1747327584038,-346.66121614,0.00014896,2]
[361181000,1747327584059,-346.66121611,0.00014897,2]
[361181001,1747327584080,-300.0,0.00014897,2]
[361181002,1747327584101,-346.66121611,0.00014897,2]
[361181003,1747327584122,-346.66121611,0.00014898,2]
[361181004,1747327584144,-1200.0,0.00014898,2]
[361181005,1747327584165,-3211.07562211,0.00014898,2]
[361181006,1747327625095,-4717.63378291,0.00014749,2]
[361181007,1747327627094,-181.19577505,0.00014749,2]
[361181308,1747327750097,-191.371093,0.00013699,2]
[361181309,1747327750121,-101.17044204,0.00014749,2]
[361181310,1747327750141,-3882.65262381,0.000149,2]
[361181311,1747327750164,-300.0,0.00014993,2]
[361181312,1747327750186,-500.0,0.00014994,2]
[361181313,1747327750208,-244.761381,0.00014994,2]
[361181314,1747327750230,-823.00224841,0.00014994,2]
[361181315,1747327750251,-823.00224841,0.00014994,2]
[361181316,1747327750432,-416.63959527,0.00014994,2]
[361181317,1747327750485,-823.00224841,0.00014994,2]
[361181318,1747327750508,-823.00224841,0.00014994,2]
[361181319,1747327750531,-823.00224841,0.00014994,2]
[361181320,1747327750552,-823.00224841,0.00014994,2]
[361181321,1747327750574,-823.00224841,0.00014994,2]
[361181322,1747327750596,-823.00224841,0.00014994,2]
[361181323,1747327750619,-823.00224841,0.00014994,2]
[361181324,1747327750641,-823.00224841,0.00014994,2]
[361181325,1747327750663,-823.00224841,0.00014994,2]
[361181326,1747327750685,-823.00224841,0.00014994,2]
[361181327,1747327750706,-823.00224841,0.00014994,2]
[361181328,1747327750728,-823.00224841,0.00014994,2]
[361181329,1747327750749,-823.00224841,0.00014994,2]
[361181330,1747327750770,-823.00224841,0.00014994,2]
[361181331,1747327750791,-823.00224841,0.00014994,2]
[361181332,1747327750812,-823.00224841,0.00014994,2]
[361181333,1747327750834,-823.00224841,0.00014994,2]
[361181334,1747327750857,-823.00224841,0.00014994,2]
[361181335,1747327750878,-823.00224841,0.00014994,2]
[361181336,1747327750899,-823.00224841,0.00014994,2]
[361181337,1747327750920,-823.00224841,0.00014994,2]
[361181338,1747327750944,-823.00224841,0.00014994,2]
[361181339,1747327750965,-823.00224841,0.00014994,2]
[361181340,1747327750990,-823.00224841,0.00014994,2]
[361181341,1747327751011,-823.00224841,0.00014994,2]
[361181342,1747327751034,-823.00224841,0.00014994,2]
[361181343,1747327751057,-823.00224841,0.00014994,2]
[361181344,1747327751079,-823.00224841,0.00014994,2]
[361181345,1747327751100,-823.00224841,0.00014994,2]
[361181346,1747327751123,-823.00224841,0.00014994,2]
[361181347,1747327751146,-823.00224841,0.00014994,2]
[361181348,1747327751170,-823.00224841,0.00014994,2]
[361181349,1747327751192,-823.00224841,0.00014994,2]
[361181350,1747327751213,-823.00224841,0.00014994,2]
[361181351,1747327751234,-823.00224841,0.00014994,2]
[361181352,1747327751255,-823.00224841,0.00014994,2]
[361181353,1747327751277,-823.00224841,0.00014994,2]
[361181354,1747327751298,-823.00224841,0.00014994,2]
[361181355,1747327751319,-823.00224841,0.00014994,2]
[361181356,1747327751340,-823.00224841,0.00014994,2]
[361181357,1747327751362,-823.00224841,0.00014994,2]
[361181358,1747327751384,-823.00224841,0.00014994,2]
[361181359,1747327751406,-823.00224841,0.00014994,2]
[361181360,1747327751428,-823.00224841,0.00014994,2]
[361181361,1747327751448,-823.00224841,0.00014994,2]
[361181362,1747327751469,-823.00224841,0.00014994,2]
[361181363,1747327751490,-823.00224841,0.00014994,2]
[361181364,1747327751510,-823.00224841,0.00014994,2]
[361181365,1747327751533,-818.67065764,0.00014994,2]
[361181366,1747327751554,-818.67065764,0.00014994,2]
[361181367,1747327751575,-818.67065764,0.00014994,2]
[361181368,1747327751598,-818.67065764,0.00014994,2]
[361181369,1747327751624,-818.67065764,0.00014994,2]
[361181370,1747327751646,-818.67065764,0.00014994,2]
[361181371,1747327751670,-818.67065764,0.00014994,2]
[361181372,1747327751697,-818.67065764,0.00014994,2]
[361181373,1747327751721,-818.67065764,0.00014994,2]
[361181374,1747327751744,-818.67065764,0.00014994,2]
[361181375,1747327751767,-818.67065764,0.00014994,2]
[361181376,1747327751789,-818.67065764,0.00014994,2]
[361181377,1747327751811,-818.67065764,0.00014994,2]
[361181378,1747327751835,-818.67065764,0.00014994,2]
[361181379,1747327751861,-818.67065764,0.00014994,2]
[361181380,1747327751883,-818.67065764,0.00014994,2]
[361181381,1747327751906,-818.67065764,0.00014994,2]
[361181382,1747327751928,-818.67065764,0.00014994,2]
[361181383,1747327751950,-818.67065764,0.00014994,2]
[361181384,1747327751972,-818.67065764,0.00014994,2]
[361181385,1747327751995,-818.67065764,0.00014994,2]
[361181386,1747327752015,-818.67065764,0.00014994,2]
[361181387,1747327752038,-818.67065764,0.00014994,2]
[361181388,1747327752063,-818.67065764,0.00014994,2]
[361181389,1747327752085,-818.67065764,0.00014994,2]
[361181390,1747327752109,-818.67065764,0.00014994,2]
[361181391,1747327752130,-818.67065764,0.00014994,2]
[361181392,1747327752154,-818.67065764,0.00014994,2]
[361181393,1747327752176,-818.67065764,0.00014994,2]
[361181394,1747327752199,-818.67065764,0.00014994,2]
[361181395,1747327752221,-818.67065764,0.00014994,2]
[361181396,1747327752243,-818.67065764,0.00014994,2]
[361181397,1747327752266,-818.67065764,0.00014994,2]
[361181398,1747327752291,-818.67065764,0.00014994,2]
[361181399,1747327752311,-818.67065764,0.00014994,2]
[361181400,1747327752333,-818.67065764,0.00014994,2]
[361181401,1747327752355,-818.67065764,0.00014994,2]
[361181402,1747327752378,-818.67065751,0.00014994,2]
[361181403,1747327752399,-500.0,0.00014999,2]
[361181404,1747327752421,-623.74659643,0.00014999,2]
[361181405,1747327752442,-221.2457835,0.00014999,2]
[361181406,1747327752464,-500.0,0.00014999,2]
[361181407,1747327752487,-1550.78999975,0.00015,2]
[361181408,1747327752508,-51661.89905043,0.00015,3]
[361181409,1747327752530,-37520.97251428,0.00015,5]
[361181410,1747327764099,-5000.0,0.00013562,2]
[361181411,1747327764121,-67.82269726,0.000149,2]
[361181412,1747327765166,-1318.82216718,0.000149,2]
[361181413,1747327765186,-18636.51978572,0.00014994,2]
[361181414,1747327765207,-264360.71126769,0.00015,5]
[361181415,1747327766183,-113828.7738,0.00015,5]
[361181416,1747327770080,-5000.0,0.00014933,2]
[361181417,1747327770101,-775.39499988,0.00015,2]
[361181418,1747327770123,-49929.12114012,0.00015,5]
[361181447,1747327831765,-4607.22096607,0.00014933,2]
[361181455,1747327831877,-392.77903393,0.00014933,2]
[361181457,1747327831887,-300.0,0.00014999,2]
[361181459,1747327831898,-267.27679761,0.00014999,2]
[361181462,1747327831913,-232.72320239,0.00014999,2]
[361181464,1747327831926,-374.1193185,0.00014999,2]
[361182026,1747327837655,-125.8806815,0.00014999,2]
[361182029,1747327837667,-500.0,0.00014999,2]
[361182031,1747327837678,-500.0,0.00014999,2]
[361182033,1747327837692,-536.56468758,0.00014999,2]
[361182036,1747327837705,-500.0,0.00014999,2]
[361182038,1747327837714,-500.0,0.00014999,2]
[361182040,1747327837724,-500.0,0.00014999,2]
[361182042,1747327837733,-500.0,0.00014999,2]
[361182044,1747327837743,-500.0,0.00014999,2]
[361182046,1747327837753,-500.0,0.00014999,2]
[361182048,1747327837762,-500.0,0.00014999,2]
[361182050,1747327837773,-500.0,0.00014999,2]
[361182075,1747327837988,-500.0,0.00014999,2]
[361182078,1747327838008,-500.0,0.00014999,2]
[361182080,1747327838022,-500.0,0.00014999,2]
[361182082,1747327838034,-500.0,0.00014999,2]
[361182085,1747327838043,-500.0,0.00014999,2]
[361182087,1747327838053,-1848.40913949,0.00015,3]
[361182737,1747327845525,-5000.0,0.00014933,2]
[361182739,1747327845535,-23982.54038573,0.00015,3]
[361182741,1747327845544,-702569.12294323,0.00015,5]
[361182798,1747327846071,-0.23064408,0.00015,5]
[361182801,1747327846083,-1638.38773088,0.00015,5]
[361182808,1747327846136,-26030.0,0.00015,5]
[361187841,1747327983001,300.0,0.00012328,2]
[361187842,1747328045615,4760.0,0.00012329,2]
[361187844,1747328107483,-300.0,0.00012328,2]
[361187845,1747328107525,-300.0,0.00012328,2]
[361187846,1747328107549,-300.0,0.00012328,2]
[361187847,1747328107571,-300.0,0.00012328,2]
[361187848,1747328107598,-1200.0,0.00012328,2]
[361187849,1747328107629,-240.0,0.00012329,2]
[361187850,1747328117921,5000.0,0.00012329,2]
[361187851,1747328129110,300.0,0.00012328,2]
[361187852,1747328133102,1749.0,0.00012329,2]
[361187853,1747328173490,-300.0,0.00012328,2]
[361187854,1747328173512,-3251.0,0.00012329,2]
[361187855,1747328178393,5000.0,0.00012329,2]
[361187856,1747328194042,5000.0,0.00012329,2]
[361187857,1747328209871,1156.0,0.00012329,2]
[361187859,1747328241519,-200.0,0.00012328,2]
[361187860,1747328241542,-3844.0,0.00012329,2]
[361187861,1747328253032,5000.0,0.00012329,2]
[361187862,1747328268220,5000.0,0.00012329,2]
[361187863,1747328284107,590.0,0.00012329,2]
[361187864,1747328301374,1265.0,0.00027814,30]
[361187865,1747328306555,-4410.0,0.00012329,2]
[361187866,1747328314137,5000.0,0.00012329,2]
[361187867,1747328329746,4949.0,0.00012329,2]
[361187868,1747328331542,1250.80044092,0.00027814,32]
[361187871,1747328371983,-51.0,0.00012329,2]
[361187872,1747328373981,4949.0,0.00012329,2]
[361187876,1747328441218,-300.0,0.00012328,2]
[361187877,1747328441239,-1200.0,0.00012328,2]
[361187878,1747328441260,-300.0,0.00012328,2]
[361187879,1747328441283,-51.0,0.00012329,2]
[361187887,1747328446727,5000.0,0.00012329,2]
[361187888,1747328463047,3109.0,0.00012329,2]
[361187889,1747328507557,-1891.0,0.00012329,2]
[361187890,1747328522377,5000.0,0.00012329,2]
[361187891,1747328538659,2480.0,0.00012329,2]
[361187892,1747328572018,5463.38541746,0.000273,120]
[361187893,1747328577286,-2520.0,0.00012329,2]
[361187894,1747328582169,2480.0,0.00012329,2]
[361187897,1747328730262,-1200.0,0.00012328,2]
[361187898,1747328730284,-253.0,0.00012328,2]
[361187899,1747328730310,-2520.0,0.00012329,2]
[361187900,1747328730332,-857.35,0.00012329,2]
[361187901,1747328730355,-1371.35,0.00012329,2]
[361187902,1747328730379,-1142.79,0.00012329,2]
[361187903,1747328730401,-952.33,0.00012329,2]
[361187904,1747328730423,-793.61,0.00012329,2]
[361187905,1747328730448,-661.34,0.00012329,2]
[361187906,1747328730474,-551.11,0.00012329,2]
[361187907,1747328730499,-459.26,0.00012329,2]
[361187908,1747328730525,-382.72,0.00012329,2]
[361187909,1747328730552,-318.93,0.00012329,2]
[361187910,1747328730577,-265.78,0.00012329,2]
[361187911,1747328730601,-221.48,0.00012329,2]
[361187912,1747328730625,-184.57,0.00012329,2]
[361187913,1747328730648,-153.81,0.00012329,2]
[361187914,1747328730671,-769.05,0.00012329,2]
[361187915,1747328730693,-5418.37853855,0.00012329,2]
[361187916,1747328730715,-1192.0,0.00013561,2]
[361187917,1747328730737,-1990.40802811,0.00014,2]
[361187924,1747328841092,-5000.0,0.00013562,2]
[361187925,1747328841113,-191.371093,0.00013699,2]
[361187926,1747328841305,-300.0,0.00013999,2]
[361187927,1747328841329,-11108.17422729,0.00014,2]
[361187928,1747328841349,-189.231,0.00014,2]
[361187929,1747328841369,-171.87918019,0.00014329,7]
[361187930,1747328841389,-163.69445732,0.00014329,7]
[361187931,1747328841410,-196.0,0.00014329,7]
[361187932,1747328841430,-204.0,0.00014329,7]
[361187933,1747328841450,-621.83362999,0.00014658,2]
[361187934,1747328841471,-2724.38809492,0.00014871,2]
[361187935,1747328841493,-2724.38809489,0.00014878,2]
[361187936,1747328841513,-4032.56224098,0.000149,2]
[361187937,1747328841537,-500.0,0.00014971,2]
[361187938,1747328841560,-500.0,0.00014971,2]
[361187939,1747328841581,-737.63660154,0.00014971,2]
[361187940,1747328841602,-191.05916312,0.00014971,2]
[361187941,1747328841623,-737.63660154,0.00014971,2]
[361187942,1747328841645,-244.76138099,0.00014971,2]
[361187943,1747328841666,-500.0,0.00014971,2]
[361187944,1747328841687,-737.63660154,0.00014971,2]
[361187945,1747328841708,-737.63660154,0.00014971,2]
[361187946,1747328841729,-500.0,0.00014971,2]
[361187947,1747328841749,-737.63660154,0.00014971,2]
[361187948,1747328841770,-737.63660154,0.00014971,2]
[361187949,1747328841792,-737.63660154,0.00014971,2]
[361187950,1747328841814,-500.0,0.00014971,2]
[361187951,1747328841835,-737.63660154,0.00014971,2]
[361187952,1747328841856,-737.63660154,0.00014971,2]
[361187953,1747328841877,-737.63660154,0.00014971,2]
[361187954,1747328841897,-500.0,0.00014971,2]
[361187955,1747328841918,-737.63660154,0.00014971,2]
[361187956,1747328841940,-737.63660154,0.00014971,2]
[361187957,1747328841961,-737.63660154,0.00014971,2]
[361187958,1747328841982,-737.63660154,0.00014971,2]
[361187959,1747328842003,-737.63660154,0.00014971,2]
[361187960,1747328842024,-737.63660154,0.00014971,2]
[361187961,1747328842046,-737.63660154,0.00014971,2]
[361187962,1747328842066,-737.63660154,0.00014971,2]
[361187963,1747328842087,-737.63660154,0.00014971,2]
[361187964,1747328842108,-737.63660154,0.00014971,2]
[361187965,1747328842129,-737.63660154,0.00014971,2]
[361187966,1747328842150,-737.63660154,0.00014971,2]
[361187967,1747328842170,-737.63660154,0.00014971,2]
[361187968,1747328842191,-737.63660154,0.00014971,2]
[361187969,1747328842212,-737.63660154,0.00014971,2]
[361187970,1747328842233,-737.63660154,0.00014971,2]
[361187971,1747328842254,-737.63660154,0.00014971,2]
[361187972,1747328842275,-737.63660154,0.00014971,2]
[361187973,1747328842297,-737.63660154,0.00014971,2]
[361187974,1747328842318,-737.63660154,0.00014971,2]
[361187975,1747328842343,-737.63660154,0.00014971,2]
[361187976,1747328842364,-737.63660154,0.00014971,2]
[361187977,1747328842385,-737.63660154,0.00014971,2]
[361187978,1747328842407,-737.63660154,0.00014971,2]
[361187979,1747328842429,-737.63660154,0.00014971,2]
[361187980,1747328842450,-737.63660154,0.00014971,2]
[361187981,1747328842473,-737.63660154,0.00014971,2]
[361187982,1747328842495,-737.63660154,0.00014971,2]
[361187983,1747328842518,-737.63660154,0.00014971,2]
[361187984,1747328842541,-737.63660154,0.00014971,2]
[361187985,1747328842564,-737.63660154,0.00014971,2]
[361187986,1747328842588,-737.63660154,0.00014971,2]
[361187987,1747328842610,-737.63660154,0.00014971,2]
[361187988,1747328842631,-737.63660154,0.00014971,2]
[361187989,1747328842652,-737.63660154,0.00014971,2]
[361187990,1747328842674,-737.63660154,0.00014971,2]
[361187991,1747328842695,-737.63660154,0.00014971,2]
[361187992,1747328842717,-737.63660154,0.00014971,2]
[361187993,1747328842738,-737.63660154,0.00014971,2]
[361187994,1747328842761,-737.63660154,0.00014971,2]
[361187995,1747328842782,-737.63660154,0.00014971,2]
[361187996,1747328842807,-737.63660154,0.00014971,2]
[361187997,1747328842827,-737.63660154,0.00014971,2]
[361187998,1747328842848,-737.63660154,0.00014971,2]
[361187999,1747328842869,-737.63660154,0.00014971,2]
[361188000,1747328842890,-737.63660154,0.00014971,2]
[361188001,1747328842911,-737.63660154,0.00014971,2]
[361188002,1747328842932,-737.63660154,0.00014971,2]
[361188003,1747328842954,-737.63660154,0.00014971,2]
[361188004,1747328842976,-728.1187099,0.00014971,2]
[361188005,1747328842997,-499.99999999,0.00014971,2]
[361188006,1747328843020,-728.1187099,0.00014971,2]
[361188007,1747328843044,-728.1187099,0.00014971,2]
[361188008,1747328843067,-728.1187099,0.00014971,2]
[361188009,1747328843088,-728.1187099,0.00014971,2]
[361188010,1747328843109,-728.1187099,0.00014971,2]
[361188011,1747328843130,-728.1187099,0.00014971,2]
[361188012,1747328843152,-728.1187099,0.00014971,2]
[361188013,1747328843175,-728.1187099,0.00014971,2]
[361188014,1747328843197,-728.1187099,0.00014971,2]
[361188015,1747328843219,-728.1187099,0.00014971,2]
[361188016,1747328843241,-728.1187099,0.00014971,2]
[361188017,1747328843262,-728.1187099,0.00014971,2]
[361188018,1747328843284,-728.1187099,0.00014971,2]
[361188019,1747328843310,-728.1187099,0.00014971,2]
[361188020,1747328843338,-728.1187099,0.00014971,2]
[361188021,1747328843360,-728.1187099,0.00014971,2]
[361188022,1747328843382,-728.1187099,0.00014971,2]
[361188023,1747328843404,-728.1187099,0.00014971,2]
[361188024,1747328843427,-728.1187099,0.00014971,2]
[361188025,1747328843449,-728.1187099,0.00014971,2]
[361188026,1747328843471,-728.1187099,0.00014971,2]
[361188027,1747328843494,-728.1187099,0.00014971,2]
[361188028,1747328843516,-728.1187099,0.00014971,2]
[361188029,1747328843538,-728.1187099,0.00014971,2]
[361188030,1747328843561,-728.1187099,0.00014971,2]
[361188031,1747328843583,-728.1187099,0.00014971,2]
[361188032,1747328843604,-728.1187099,0.00014971,2]
[361188033,1747328843626,-728.1187099,0.00014971,2]
[361188034,1747328843648,-728.1187099,0.00014971,2]
[361188035,1747328843670,-728.11870991,0.00014971,2]
[361188036,1747328843690,-500.0,0.00014973,2]
[361188037,1747328843711,-500.0,0.00014973,2]
[361188038,1747328843732,-500.0,0.00014973,2]
[361188039,1747328843752,-500.0,0.00014973,2]
[361188040,1747328843774,-471.60859648,0.00014999,2]
[361188041,1747328843795,-500.0,0.00014999,2]
[361188042,1747328843816,-329.44490668,0.00014999,2]
[361188043,1747328843837,-159.99520263,0.00014999,2]
[361188044,1747328843858,-260.46151331,0.00014999,2]
[361188045,1747328843879,-447.21912237,0.00014999,2]
[361188046,1747328843899,-187.12397893,0.00014999,2]
[361188047,1747328843922,-387.69749994,0.00015,2]
[361188048,1747328843942,-17160.87294997,0.00015,3]
[361188049,1747328843964,-136020.95507401,0.00015,5]
[361188050,1747328850087,-5000.0,0.00014737,2]
[361188051,1747328850112,-2724.38809489,0.00014886,2]
[361188052,1747328850131,-2724.38809489,0.00014893,2]
[361188053,1747328850151,-2724.38809489,0.000149,2]
[361188054,1747328850172,-193.84874997,0.00015,2]
[361188055,1747328850192,-93782.12655888,0.00015,5]
[361188153,1747328955101,-5000.0,0.0001485,2]
[361188154,1747328955124,-194.92858372,0.000149,2]
[361188155,1747328955145,-500.0,0.00014973,2]
[361188156,1747328955165,-500.0,0.00014973,2]
[361188157,1747328955187,-500.0,0.00014999,2]
[361188158,1747328955209,-354.56212924,0.00014999,2]
[361188159,1747328955232,-500.0,0.00014999,2]
[361188160,1747328955254,-404.27859038,0.00014999,2]
[361188161,1747328955275,-500.0,0.00014999,2]
[361188162,1747328955296,-500.0,0.00014999,2]
[361188163,1747328955320,-500.0,0.00014999,2]